bitfinex-derivatives/quotes_ETHF0:USTF0_20260123
["timestamp","ask_amount","ask_price","bid_price","bid_amount"]
[1769149262122,1.02403683,2975.8,2974.5,0.88593653]
[1769149262325,0.1381003,2975.7,2974.3,0.16831]
[1769149262736,0.14073308,2975.7,2974.3,0.16831]
[1769149263232,1.02403683,2975.2,2974.3,0.16831]
[1769149263633,0.1381003,2975.2,2974.3,0.16831]
[1769149267839,0.14068055,2975.1,2974.0,0.00871494]
[1769149268041,1.02661708,2974.9,2974.0,0.00871494]
[1769149268840,0.14068055,2974.9,2974.0,0.00871494]
[1769149277944,0.14068055,2974.7,2974.0,0.00871494]
[1769149291958,0.13759692,2975.1,2974.0,0.00871494]
[1769149292163,6.498,2975.6,2974.4,0.88593653]
[1769149292164,0.13759692,2975.5,2974.4,0.88593653]
[1769149292362,0.97611406,2975.4,2974.4,0.88593653]
[1769149292662,0.97611406,2975.3,2974.4,0.88593653]
[1769149292851,0.13759692,2975.5,2974.4,0.88593653]
[1769149293056,0.97614918,2975.4,2974.4,0.88593653]
[1769149293257,1.3316639,2975.3,2974.4,0.88593653]
[1769149293452,0.13759692,2975.5,2974.4,1.05424653]
[1769149293659,0.00263278,2975.7,2974.4,1.05424653]
[1769149293858,1.33158577,2975.6,2974.4,1.05424653]
[1769149294061,0.1402297,2975.7,2974.4,1.05424653]
[1769149294261,0.97617587,2975.6,2974.4,1.05424653]
[1769149294465,0.1402297,2975.7,2974.4,1.05424653]
[1769149294666,0.97584983,2975.6,2974.4,1.05424653]
[1769149294866,0.1402297,2975.7,2974.4,1.05424653]
[1769149295168,0.97584962,2975.6,2974.4,1.05424653]
[1769149295365,0.1402297,2975.7,2974.4,1.05424653]
[1769149295561,1.11316221,2975.6,2974.4,1.05424653]
[1769149295764,0.13759692,2975.6,2974.4,1.05424653]
[1769149301869,0.13759692,2975.3,2974.4,0.16831]
[1769149307176,0.13759692,2974.7,2974.0,0.00871494]
[1769149307381,0.13759692,2974.7,2973.8,0.16834]
[1769149308481,0.13759692,2974.7,2973.8,0.17212651]
[1769149309185,0.13759692,2974.7,2973.8,1.05806304]
[1769149311886,0.13759692,2974.7,2973.8,0.17212651]
[1769149328290,0.13759692,2974.7,2973.8,0.00378651]
[1769149328492,0.35470676,2974.6,2973.1,0.16838]
[1769149328693,0.14826434,2974.4,2973.1,0.16838]
[1769149329397,0.14826434,2974.4,2973.1,0.1714011]
[1769149330391,0.14826434,2974.4,2973.1,0.0030211]
[1769149330592,0.14826434,2974.2,2973.1,0.00110681]
[1769149330890,0.14826434,2974.0,2973.1,0.00110681]
[1769149331091,0.14826434,2973.8,2972.4,0.16842]
[1769149331897,0.00504719,2973.4,2972.4,0.16842]
[1769149332197,0.00823209,2973.4,2972.4,0.17201693]
[1769149352813,0.2129,2973.3,2972.4,0.17201693]
[1769149365725,0.35686427,2973.3,2972.4,0.00359693]
[1769149368724,0.14396427,2973.2,2972.4,0.00359693]
[1769149369527,0.14396427,2973.2,2972.0,2.935]
[1769149370326,0.14396427,2973.2,2972.0,2.93901779]
[1769149370828,0.14396427,2973.2,2972.0,0.00401779]
[1769149374133,0.14396427,2973.0,2972.0,0.00401779]
[1769149374338,0.14396427,2972.8,2972.0,0.00401779]
[1769149374723,0.14396427,2972.6,2972.0,0.00401779]
[1769149374923,0.14396427,2972.6,2971.2,0.16849]
[1769149375133,0.14396427,2972.4,2971.2,0.16849]
[1769149375838,0.14396427,2972.4,2971.2,0.17255541]
[1769149376835,0.14396427,2972.2,2971.2,0.00406541]
[1769149380235,0.14396427,2972.0,2971.2,0.00406541]
[1769149381042,0.00504719,2971.9,2971.2,0.00406541]
[1769149382838,0.14299856,2971.9,2971.2,0.00406541]
[1769149383035,0.88735481,2971.5,2970.1,3.81335481]
[1769149383238,0.13795137,2971.4,2970.1,3.81335481]
[1769149383937,0.13795137,2971.4,2970.1,3.81690488]
[1769149384142,0.13795137,2971.4,2970.1,0.89090488]
[1769149385541,0.13933839,2970.9,2970.1,0.00355007]
[1769149385840,0.14204191,2970.9,2970.1,0.00355007]
[1769149387735,1.02939672,2970.9,2970.1,0.00355007]
[1769149387939,0.13933839,2970.8,2969.7,2.927]
[1769149388946,0.13933839,2970.8,2969.7,2.93065805]
[1769149389944,0.13933839,2970.5,2969.7,0.00365805]
[1769149390745,0.14438558,2970.4,2969.7,0.00365805]
[1769149394341,0.13933839,2970.2,2968.6,0.88735481]
[1769149394545,0.13933839,2970.2,2968.8,2.919]
[1769149394740,0.13933839,2969.9,2968.6,0.88735481]
[1769149394944,0.13933839,2969.9,2968.6,2.75935481]
[1769149395242,0.13933839,2969.9,2968.6,2.76286695]
[1769149395446,0.213,2969.8,2968.6,0.89086695]
[1769149396251,0.35233839,2969.8,2968.6,0.89086695]
[1769149396446,0.213,2969.8,2968.9,0.88735481]
[1769149397742,0.213,2969.8,2968.6,0.00351214]
[1769149397743,0.13933839,2970.2,2969.3,0.88735481]
[1769149399658,0.00504719,2970.4,2969.3,0.88735481]
[1769149400255,0.00504719,2970.4,2969.6,0.88735481]
[1769149400452,0.00504719,2970.4,2969.3,0.88735481]
[1769149403557,0.00504719,2970.4,2969.1,0.16861]
[1769149404858,0.88735481,2969.7,2968.6,0.00351214]
[1769149405556,0.13933839,2969.9,2968.6,0.00351214]
[1769149406451,0.13933839,2969.9,2968.8,0.88735481]
[1769149408063,0.13933839,2970.3,2969.1,0.88735481]
[1769149408359,0.96768168,2970.2,2969.1,0.88735481]
[1769149408559,0.13933839,2970.3,2969.1,0.88735481]
[1769149408759,0.13933839,2970.2,2968.8,0.88735481]
[1769149409053,0.13933839,2970.1,2968.8,0.88735481]
[1769149411059,0.13933839,2970.1,2968.6,0.00351214]
[1769149411360,2.34849887,2970.0,2968.6,0.89086695]
[1769149411562,0.96834745,2969.9,2968.6,0.89086695]
[1769149413154,1.12527473,2969.9,2968.6,0.89086695]
[1769149413359,0.96834745,2969.8,2968.6,0.89086695]
[1769149414766,0.15692728,2969.7,2968.6,0.89086695]
[1769149414972,0.15692728,2969.5,2968.6,0.00351214]
[1769149415173,0.97062298,2969.4,2968.6,0.00351214]
[1769149415372,0.15692728,2969.5,2968.6,0.00351214]
[1769149415572,0.97104469,2969.4,2968.6,0.00351214]
[1769149415773,0.15692728,2969.5,2968.6,0.00351214]
[1769149415973,0.97104649,2969.4,2968.6,0.00351214]
[1769149416173,0.15692728,2969.5,2968.6,0.00351214]
[1769149416471,0.97102748,2969.4,2968.6,0.00351214]
[1769149416677,0.15692728,2969.3,2968.6,0.00351214]
[1769149417078,0.15692728,2968.9,2968.1,2.911]
[1769149417866,0.00504719,2968.8,2968.1,2.911]
[1769149418074,0.00782471,2968.8,2968.1,2.91382467]
[1769149419575,0.88735481,2968.4,2967.0,0.88735481]
[1769149419778,1.12716456,2968.3,2967.1,2.91]
[1769149419980,0.15692728,2968.7,2967.6,0.88735481]
[1769149420179,0.9702302,2968.6,2967.6,0.88735481]
[1769149420374,0.9702302,2968.5,2967.6,2.911]
[1769149420571,0.9702302,2968.5,2966.7,0.88735481]
[1769149420572,0.15692728,2968.0,2966.8,0.88735481]
[1769149420772,1.04428209,2968.4,2967.2,0.00372118]
[1769149420973,0.96950539,2968.3,2967.1,0.88735481]
[1769149421174,0.96950539,2968.2,2967.2,0.00372118]
[1769149421480,0.96950539,2968.2,2966.5,0.30605127]
[1769149421481,0.15692728,2968.3,2966.9,3.80435481]
[1769149421678,0.96872725,2968.2,2967.2,0.00273002]
[1769149421873,0.15692728,2968.3,2967.2,0.00273002]
[1769149422077,0.96872734,2968.2,2967.2,0.0064512]
[1769149422278,0.15692728,2968.3,2967.2,0.0064512]
[1769149422478,0.15692728,2968.3,2967.2,0.00273002]
[1769149422876,0.15692728,2968.3,2967.2,0.89008483]
[1769149423076,0.88735481,2968.7,2967.4,0.00372118]
[1769149423277,0.96950946,2968.6,2967.5,0.88735481]
[1769149423478,0.96950946,2968.5,2967.3,0.00372118]
[1769149423677,0.96950946,2968.5,2967.2,0.89008483]
[1769149423678,0.15692728,2968.6,2967.4,0.00372118]
[1769149423878,0.96921454,2968.5,2967.3,0.00372118]
[1769149424078,0.15692728,2968.6,2967.4,0.00372118]
[1769149424279,0.96921305,2968.5,2967.4,0.00372118]
[1769149424478,0.15692728,2968.6,2967.5,0.00372118]
[1769149424781,0.15692728,2968.6,2967.4,0.00372118]
[1769149424782,0.96890681,2968.5,2967.4,0.00372118]
[1769149424982,0.15692728,2968.6,2967.4,0.00372118]
[1769149425172,0.15692728,2968.6,2967.2,0.89008483]
[1769149425173,0.15692728,2968.6,2967.6,0.89107599]
[1769149425373,0.00782471,2968.8,2967.6,0.89107599]
[1769149425577,0.00782471,2968.8,2967.7,0.00372118]
[1769149425777,0.15692728,2968.6,2967.6,0.00372118]
[1769149426076,0.15692728,2968.6,2967.2,0.00273002]
[1769149426476,0.15692728,2968.6,2967.2,0.0064512]
[1769149427074,0.15692728,2968.6,2967.3,0.00372118]
[1769149427275,1.04428209,2968.4,2967.3,0.00372118]
[1769149427475,0.15692728,2968.3,2967.2,0.00273002]
[1769149427678,0.15692728,2968.3,2967.4,0.00372118]
[1769149427879,0.15692728,2968.3,2967.5,0.00372118]
[1769149428280,0.15692728,2968.3,2967.2,0.00273002]
[1769149428482,0.15692728,2968.3,2967.2,0.0064512]
[1769149429481,0.15692728,2968.3,2967.3,0.00372118]
[1769149431092,0.15692728,2968.1,2967.2,0.00273002]
[1769149431775,0.15692728,2968.1,2966.7,2.914]
[1769149431776,0.15692728,2967.9,2966.2,2.914]
[1769149431976,0.15692728,2967.7,2966.2,2.914]
[1769149432282,0.15692728,2967.7,2966.4,0.00372118]
[1769149432487,0.00505578,2967.2,2966.3,2.914]
[1769149432786,0.00505578,2967.2,2966.5,0.00372118]
[1769149432985,0.00505578,2967.2,2966.7,0.00372118]
[1769149433185,5.78e-06,2967.2,2966.3,2.91822565]
[1769149433389,0.15692728,2968.3,2967.1,0.00372118]
[1769149433584,0.15692728,2968.3,2966.6,0.00505578]
[1769149433780,0.15692728,2968.3,2966.8,0.00372118]
[1769149433980,0.15692728,2968.1,2966.8,2.37572118]
[1769149434182,0.15692728,2968.1,2966.8,2.372]
[1769149434384,0.15692728,2968.1,2967.0,0.00372118]
[1769149434683,0.15692728,2968.1,2966.6,2.92605578]
[1769149434987,0.96738764,2968.0,2966.7,0.00372118]
[1769149435187,0.15692728,2967.9,2966.7,0.00372118]
[1769149435391,0.15692728,2967.9,2966.6,2.92605578]
[1769149435584,0.15692728,2967.9,2966.8,0.00372118]
[1769149435986,0.15692728,2967.9,2966.9,0.00372118]
[1769149436181,0.15692728,2967.7,2966.6,0.00505578]
[1769149436385,0.15692728,2967.5,2966.6,0.00505578]
[1769149436778,0.15692728,2967.5,2966.7,0.00372118]
[1769149437185,0.15692728,2967.5,2966.8,0.00372118]
[1769149437486,0.15692728,2967.5,2966.7,0.00372118]
[1769149437683,0.15692728,2967.5,2966.6,0.00505578]
[1769149438290,0.15692728,2967.5,2966.6,0.00877696]
[1769149438790,0.15692728,2967.5,2966.3,0.00422565]
[1769149438991,0.16198306,2967.3,2966.3,0.00422565]
[1769149439394,0.15692728,2967.1,2966.3,0.00422565]
[1769149439790,0.15692728,2967.1,2966.4,0.00372118]
[1769149439998,0.00505578,2967.3,2966.7,0.00372118]
[1769149440295,0.16198306,2967.3,2966.3,0.00422565]
[1769149440590,0.16198306,2967.3,2965.0,0.16884]
[1769149440591,0.15692728,2967.1,2965.6,2.914]
[1769149440797,0.15692728,2966.9,2965.6,2.914]
[1769149441283,0.15692728,2966.9,2965.0,0.16884]
[1769149441489,0.15692728,2966.7,2965.3,0.00372118]
[1769149441693,0.15987773,2966.7,2965.4,1.874]
[1769149441896,0.13880264,2966.5,2965.4,1.874]
[1769149442096,0.13880264,2966.5,2965.7,0.00372118]
[1769149442496,0.13880264,2966.5,2965.9,0.00372118]
[1769149442699,0.13880264,2966.5,2965.7,0.00372118]
[1769149442896,0.13880264,2966.5,2965.6,0.00372118]
[1769149443086,0.13880264,2966.3,2965.1,0.00372118]
[1769149443291,0.13880264,2966.3,2965.0,0.00356261]
[1769149443496,0.13880264,2966.3,2965.2,0.00372118]
[1769149443891,0.13880264,2966.3,2965.3,0.00372118]
[1769149444090,0.14175309,2966.7,2965.0,0.00356261]
[1769149444398,0.14175309,2966.7,2965.2,0.00372118]
[1769149444599,0.14175309,2966.7,2965.1,2.302]
[1769149444799,0.14175309,2966.7,2965.3,0.00372118]
[1769149445000,0.14894928,2966.5,2965.2,2.911]
[1769149445190,0.14894928,2966.5,2965.3,0.00372118]
[1769149445396,0.14894928,2966.5,2965.5,0.00372118]
[1769149445796,0.14894928,2966.5,2965.6,0.00372118]
[1769149446002,0.14894928,2966.5,2965.5,0.00372118]
[1769149446502,0.14894928,2966.5,2965.6,0.00372118]
[1769149446706,0.14894928,2966.5,2965.7,0.00372118]
[1769149447102,0.14894928,2966.3,2965.7,0.00372118]
[1769149447303,0.14894928,2966.3,2965.2,2.911]
[1769149447499,0.14894928,2966.3,2965.6,0.00372118]
[1769149447902,0.14894928,2966.3,2965.8,0.00372118]
[1769149448210,0.14894928,2966.3,2965.6,0.00372118]
[1769149448399,0.14894928,2966.3,2965.2,2.911]
[1769149448598,0.14894928,2966.3,2965.0,0.00356261]
[1769149448899,0.14894928,2966.3,2965.1,2.905]
[1769149449694,0.14894928,2966.3,2965.2,2.904]
[1769149450098,0.14894928,2966.3,2965.0,0.00356261]
[1769149450300,0.14894928,2966.3,2965.1,2.903]
[1769149451103,0.14894928,2966.3,2965.0,0.00356261]
[1769149451402,0.14894928,2966.1,2965.0,0.00356261]
[1769149451602,0.14894928,2965.9,2963.9,0.1689]
[1769149451801,0.14894928,2965.7,2963.3,0.13879738]
[1769149452003,0.14894928,2965.5,2963.3,0.13879738]
[1769149452203,0.14894928,2965.3,2963.4,2.046]
[1769149452510,0.00505578,2964.8,2963.4,2.046]
[1769149452802,0.14894928,2965.3,2963.7,0.3080073]
[1769149453201,0.14894928,2965.3,2963.7,0.16891]
[1769149454000,0.14894928,2965.3,2963.6,2.914]
[1769149454304,0.14894928,2965.3,2963.7,2.914]
[1769149454705,0.14894928,2965.3,2963.6,2.914]
[1769149455097,0.14894928,2965.3,2963.4,0.00339449]
[1769149455304,0.14894928,2965.1,2963.4,0.00339449]
[1769149455804,3.59729195,2966.1,2963.4,0.00339449]
[1769149455805,0.14894928,2964.9,2963.4,0.00339449]
[1769149462418,0.14894928,2964.9,2963.4,2.90939449]
[1769149463818,0.14894928,2964.9,2963.4,0.00339449]
[1769149464018,0.14894928,2964.9,2963.5,2.907]
[1769149464317,0.14894928,2964.9,2963.9,0.00505578]
[1769149464511,0.14894928,2965.7,2963.9,0.00505578]
[1769149464718,0.14894928,2965.7,2963.9,0.1457905]
[1769149464918,0.14894928,2965.7,2964.1,0.16889]
[1769149465114,0.14894928,2965.7,2964.1,0.30962472]
[1769149465620,0.14894928,2965.7,2964.2,2.905]
[1769149467118,0.14894928,2965.7,2964.2,3.07389]
[1769149467322,0.14894928,2966.1,2964.2,3.21859178]
[1769149467520,0.96671665,2966.0,2964.2,3.21859178]
[1769149467822,0.14894928,2966.1,2964.2,3.21859178]
[1769149468123,1.11566588,2966.0,2964.2,3.21859178]
[1769149468322,0.14894928,2966.0,2964.2,3.21859178]
[1769149469120,0.14894928,2966.0,2964.2,3.07389]
[1769149469314,0.96830663,2965.9,2964.2,3.07389]
[1769149469622,0.14894928,2965.8,2964.2,3.07389]
[1769149471620,0.14894928,2965.8,2964.3,2.897]
[1769149471820,0.15780647,2965.6,2963.9,0.00505578]
[1769149472020,0.15780647,2965.4,2963.9,0.00505578]
[1769149473122,0.15780647,2965.2,2963.9,0.00505578]
[1769149473325,0.15780647,2965.0,2963.9,0.00505578]
[1769149473625,0.15780647,2964.8,2963.9,0.00505578]
[1769149473828,0.15780647,2964.6,2963.9,0.00505578]
[1769149474015,0.16114817,2964.6,2963.4,0.00339449]
[1769149474219,0.16620395,2964.6,2963.4,0.00339449]
[1769149475524,0.15780647,2964.4,2963.4,0.00339449]
[1769149476916,0.00839748,2964.6,2963.4,0.00339449]
[1769149477120,0.96881861,2964.5,2963.4,0.00339449]
[1769149477318,0.16620395,2964.6,2963.4,0.00339449]
[1769149477738,0.15780647,2964.4,2963.4,0.00339449]
[1769149480928,0.15780647,2964.2,2962.1,2.889]
[1769149481129,0.15780647,2964.0,2962.1,2.889]
[1769149481335,0.15780647,2963.8,2962.1,2.889]
[1769149481534,0.15780647,2963.3,2960.6,0.14312295]
[1769149481727,0.15780647,2963.1,2960.9,0.16907]
[1769149482024,0.15780647,2962.9,2960.9,0.17309884]
[1769149482229,0.15780647,2962.7,2960.9,0.17309884]
[1769149482426,0.16286225,2962.3,2960.9,3.07009884]
[1769149482623,0.16648317,2962.3,2960.9,0.00402884]
[1769149483436,0.0086767,2962.3,2960.9,0.00402884]
[1769149483624,0.16648317,2962.3,2960.9,0.00402884]
[1769149483823,0.0086767,2962.3,2961.0,1.876]
[1769149484429,0.0086767,2962.3,2960.9,0.00402884]
[1769149484934,0.16648317,2962.3,2960.9,0.00402884]
[1769149487228,0.0086767,2962.3,2960.9,0.00402884]
[1769149487423,0.16648317,2962.3,2960.9,0.17309884]
[1769149487630,0.16648317,2962.3,2960.9,0.00402884]
[1769149489225,2.0,2961.0,2960.9,0.00402884]
[1769149489533,2.0,2961.0,2960.1,0.16912]
[1769149490334,2.0,2961.0,2960.1,0.17159224]
[1769149490936,1.83969292,2961.0,2960.1,0.17159224]
[1769149492128,1.99871433,2961.0,2960.1,0.00247224]
[1769149492335,0.15902141,2960.9,2960.1,0.00247224]
[1769149493139,0.00506448,2960.8,2960.1,0.00247224]
[1769149494246,0.16650194,2960.8,2960.1,0.00247224]
[1769149494745,0.16650194,2960.8,2959.4,0.16916]
[1769149494946,0.16650194,2960.8,2957.9,0.26783871]
[1769149494947,0.16650194,2960.8,2958.9,0.16919]
[1769149495343,0.16650194,2960.8,2959.1,0.16917]
[1769149495538,0.16650194,2960.8,2959.3,0.16916]
[1769149495741,0.16650194,2960.8,2959.3,0.17210989]
[1769149496046,0.16650194,2960.8,2959.4,0.16916]
[1769149497536,0.16650194,2960.8,2958.5,0.16921]
[1769149497742,0.16168076,2960.7,2958.2,0.00294989]
[1769149497942,0.16168076,2960.7,2957.9,1.878]
[1769149498349,0.16168076,2960.7,2958.5,0.16921]
[1769149498748,0.00506448,2959.6,2958.5,0.17310894]
[1769149498951,0.00832118,2959.6,2958.6,0.00294989]
[1769149499143,0.00832118,2959.6,2958.6,0.17214989]
[1769149499445,0.00832118,2959.6,2958.7,0.00294989]
[1769149499641,1.18e-06,2959.6,2958.7,0.00294989]
[1769149500149,0.16200483,2960.4,2958.8,0.00294989]
[1769149500349,0.16200483,2960.9,2959.4,0.16916]
[1769149500549,0.16200483,2960.9,2959.4,2.04716]
[1769149500944,0.16483628,2960.9,2959.9,0.00506448]
[1769149501350,0.16483628,2960.9,2959.9,0.00801437]
[1769149501649,0.16483628,2960.9,2960.0,0.00294989]
[1769149501849,0.03629303,2960.0,2959.9,0.00506448]
[1769149502045,0.16483628,2960.9,2959.9,0.00506448]
[1769149502443,0.16483628,2960.9,2958.7,2.0472]
[1769149502644,0.15671222,2960.6,2958.7,0.1692]
[1769149502844,0.15671222,2960.6,2958.7,2.0472]
[1769149503551,0.15671222,2960.6,2958.7,0.1692]
[1769149504650,0.15671222,2960.6,2958.8,0.16919]
[1769149504845,0.15714412,2960.2,2958.5,0.00389894]
[1769149506446,0.15794539,2960.0,2958.5,0.00389894]
[1769149508350,0.15794539,2960.0,2958.5,2.89589894]
[1769149509152,0.15794539,2960.0,2958.5,3.06510894]
[1769149510454,0.15794539,2960.0,2958.5,0.00389894]
[1769149510646,0.15668461,2959.7,2957.8,1.3173523]
[1769149510848,0.00506448,2960.7,2958.4,0.14056547]
[1769149511052,0.00283145,2960.9,2958.8,0.16919]
[1769149511351,0.96435233,2960.8,2959.0,0.16918]
[1769149511557,0.00283145,2960.9,2959.6,0.00506448]
[1769149511762,0.00283145,2960.9,2959.7,2.888]
[1769149511958,2.04797,2962.8,2959.7,2.888]
[1769149511959,1.2,2962.3,2959.7,2.888]
[1769149512159,1.3173523,2962.0,2959.9,0.16913]
[1769149512361,1.3180021,2961.9,2959.9,0.16913]
[1769149512561,1.3180021,2961.8,2959.9,0.16913]
[1769149512758,0.96616743,2961.7,2959.9,0.16913]
[1769149513065,0.14665782,2961.5,2959.9,0.16913]
[1769149513360,0.14665782,2961.3,2959.9,0.16913]
[1769149514756,0.00323131,2961.7,2960.0,0.16912]
[1769149515362,0.96648104,2961.6,2960.1,2.881]
[1769149515562,0.14665782,2961.6,2960.1,2.881]
[1769149516165,0.14665782,2961.6,2960.2,2.88]
[1769149519058,0.00323131,2961.7,2960.3,0.14056547]
[1769149519262,0.00323131,2961.7,2960.3,0.30967547]
[1769149519462,0.00323131,2961.7,2960.4,0.1691]
[1769149519658,0.14665782,2962.4,2960.8,0.16908]
[1769149519868,0.14665782,2962.4,2960.9,0.16907]
[1769149520362,0.14665782,2962.4,2961.4,0.00506448]
[1769149520566,0.14665782,2963.2,2961.4,0.00506448]
[1769149520765,0.14665782,2963.0,2961.4,0.00896592]
[1769149520959,0.14665782,2962.8,2961.4,0.00896592]
[1769149521159,0.14665782,2962.6,2961.4,0.00896592]
[1769149521362,0.14665782,2962.4,2961.4,0.00896592]
[1769149522059,0.14665782,2963.1,2961.4,0.00896592]
[1769149522256,0.14665782,2962.9,2961.4,0.00896592]
[1769149522462,1.11323312,2962.8,2961.4,0.00896592]
[1769149522663,0.9665753,2962.7,2961.4,0.00896592]
[1769149522858,0.9665753,2962.6,2961.4,0.00896592]
[1769149523060,0.14665782,2962.8,2961.4,0.00896592]
[1769149523259,0.96619247,2962.7,2961.4,0.00896592]
[1769149523466,0.14665782,2962.8,2961.5,0.16904]
[1769149523663,0.00297885,2963.2,2961.5,0.16904]
[1769149523866,0.96588327,2963.1,2961.5,0.16904]
[1769149524065,0.00297885,2963.2,2961.5,0.16904]
[1769149525660,0.00297885,2963.2,2961.6,0.16903]
[1769149526366,0.14963667,2963.2,2961.6,0.16903]
[1769149527364,0.14963667,2963.2,2961.4,0.00896592]
[1769149529266,0.14963667,2963.2,2961.5,1.878]
[1769149529868,0.00297885,2963.2,2961.5,2.01236807]
[1769149530472,0.14963667,2963.2,2961.8,0.16902]
[1769149531668,0.14963667,2963.2,2961.4,0.00896592]
[1769149531868,0.14963667,2963.2,2961.4,2.87496592]
[1769149533868,0.14963667,2963.2,2961.4,0.00896592]
[1769149534074,0.13833935,2963.0,2961.4,0.00896592]
[1769149538271,0.13833935,2962.8,2961.4,0.00896592]
[1769149538478,0.13833935,2962.6,2961.4,0.00896592]
[1769149541479,0.13833935,2962.4,2961.4,0.00896592]
[1769149543282,0.13833935,2962.4,2960.2,0.16911]
[1769149543480,0.14340383,2962.2,2960.2,0.16911]
[1769149543685,0.13833935,2962.0,2960.2,0.16911]
[1769149544279,0.13833935,2962.0,2960.2,0.17200675]
[1769149544486,0.13833935,2962.0,2960.3,0.31301124]
[1769149544686,0.00506448,2962.2,2960.4,0.31300124]
[1769149544886,0.00506448,2962.2,2960.5,0.14390124]
[1769149545889,0.00506448,2962.2,2960.6,0.16909]
[1769149546185,0.00506448,2962.2,2960.7,3.15698123]
[1769149547180,0.00506448,2962.2,2960.7,0.31298123]
[1769149547385,0.14340383,2962.2,2960.8,2.846]
[1769149554089,0.14340383,2962.2,2960.7,0.16908]
[1769149554289,0.14340383,2962.2,2960.8,2.848]
[1769149555482,0.13833935,2961.9,2960.2,0.00289675]
[1769149555686,0.13833935,2961.7,2959.7,2.851]
[1769149555991,0.13833935,2961.5,2959.7,2.851]
[1769149556191,0.13833935,2961.3,2959.7,2.851]
[1769149556383,0.13833935,2961.1,2959.7,2.851]
[1769149556586,1.10859853,2961.0,2959.8,2.852]
[1769149556786,0.13833935,2961.0,2959.8,2.852]
[1769149557093,0.00506448,2960.7,2959.8,2.852]
[1769149557893,0.00506448,2960.7,2959.7,0.00337955]
[1769149558087,0.00239996,2961.1,2959.8,2.99335792]
[1769149558288,0.13833935,2961.6,2959.9,0.14335792]
[1769149558593,0.13833935,2961.6,2960.0,2.85]
[1769149559194,0.14143077,2961.6,2959.9,0.14335792]
[1769149559494,0.14143077,2961.6,2960.5,0.00506448]
[1769149560497,0.00309142,2961.6,2960.5,0.00506448]
[1769149561690,0.13833935,2962.6,2960.5,0.15021971]
[1769149561891,0.14709868,2962.4,2960.5,0.15021971]
[1769149562088,1.31657891,2962.3,2960.5,0.15021971]
[1769149562298,0.14709868,2962.4,2960.5,0.15021971]
[1769149562498,0.14709868,2962.2,2960.5,0.00506448]
[1769149562797,0.14709868,2962.0,2960.5,0.00506448]
[1769149562997,0.14709868,2961.8,2960.5,0.00506448]
[1769149563193,0.14709868,2961.6,2960.5,0.00506448]
[1769149563594,0.14709868,2962.1,2960.5,0.00506448]
[1769149563795,1.31694044,2962.0,2960.5,0.00506448]
[1769149563996,1.31694044,2961.9,2960.5,0.00506448]
[1769149564195,0.96353274,2961.8,2960.5,0.00506448]
[1769149564397,0.14709868,2962.0,2960.5,0.00506448]
[1769149564696,1.31697478,2961.9,2960.5,0.00506448]
[1769149564897,0.14709868,2962.0,2960.5,0.00506448]
[1769149568801,0.14709868,2962.0,2960.6,2.85]
[1769149569199,0.35361672,2961.9,2960.6,2.85]
[1769149569409,0.14636995,2961.8,2960.6,2.85]
[1769149570404,0.14636995,2961.8,2960.5,0.00506448]
[1769149570596,0.14636995,2961.8,2960.6,2.848]
[1769149572106,0.00272245,2962.2,2960.6,2.848]
[1769149572308,1.31806884,2962.1,2960.6,2.848]
[1769149572604,0.00272245,2962.2,2960.6,2.848]
[1769149572804,0.3535507,2962.1,2960.6,2.848]
[1769149573001,0.1490924,2962.2,2960.6,2.848]
[1769149573196,0.35354777,2962.1,2960.6,2.848]
[1769149573397,0.1490924,2962.2,2960.6,2.848]
[1769149573606,0.14636995,2962.0,2960.5,0.00506448]
[1769149573906,0.14636995,2961.8,2960.5,0.00506448]
[1769149574111,0.14636995,2961.8,2960.6,2.843]
[1769149574500,0.14636995,2961.8,2960.7,2.844]
[1769149575712,0.14636995,2961.8,2960.6,2.843]
[1769149578910,0.14636995,2961.8,2960.5,0.00506448]
[1769149578911,0.14636995,2961.8,2960.7,2.838]
[1769149580910,0.1490924,2962.2,2960.7,2.838]
[1769149581111,1.31738269,2962.1,2960.7,2.838]
[1769149581309,0.1490924,2962.2,2960.7,2.838]
[1769149581607,1.31739494,2962.1,2960.7,2.838]
[1769149581810,0.1490924,2962.2,2960.7,2.838]
[1769149582311,0.00272245,2962.2,2960.7,3.00708]
[1769149582505,0.00272245,2962.2,2960.8,0.14292105]
[1769149587813,0.1490924,2962.2,2960.7,0.16908]
[1769149588112,0.14636995,2962.0,2960.8,2.834]
[1769149589315,0.14636995,2962.0,2960.7,0.16908]
[1769149589614,0.14636995,2962.0,2960.8,2.835]
[1769149593317,0.14636995,2962.0,2960.7,0.16908]
[1769149593517,0.14636995,2962.0,2960.8,2.835]
[1769149599620,0.14636995,2962.0,2960.5,0.00506448]
[1769149599816,0.14636995,2962.0,2960.6,2.832]
[1769149602321,0.14636995,2962.0,2960.5,0.00506448]
[1769149602620,0.14636995,2962.0,2960.6,2.832]
[1769149606025,0.14636995,2962.0,2960.5,0.00506448]
[1769149606026,0.35378978,2961.9,2960.5,0.00506448]
[1769149606229,0.14585509,2961.7,2960.5,0.00506448]
[1769149606429,0.14585509,2961.5,2960.5,0.00506448]
[1769149607535,0.15091957,2961.3,2960.0,2.83]
[1769149607829,1.46359862,2961.2,2960.0,2.83]
[1769149608030,1.31774353,2961.1,2960.0,2.83]
[1769149608234,0.14585509,2961.2,2960.0,2.83]
[1769149608533,0.00506448,2961.3,2960.0,2.83]
[1769149608728,0.3533652,2961.2,2960.0,2.83]
[1769149608928,0.00506448,2961.3,2960.0,2.96648507]
[1769149609531,0.14585509,2962.0,2960.1,0.13648507]
[1769149609730,1.31717731,2961.9,2960.1,0.13648507]
[1769149610033,0.14585509,2962.0,2960.3,0.13648507]
[1769149610235,0.14585509,2961.8,2960.4,2.835]
[1769149610436,0.14585509,2961.6,2960.4,2.835]
[1769149610637,0.49925714,2961.5,2960.4,2.835]
[1769149610834,0.14585509,2961.5,2960.4,2.835]
[1769149614740,0.14585509,2961.5,2960.3,2.829]
[1769149617146,0.14585509,2961.5,2959.9,0.13648507]
[1769149617350,0.35304366,2961.4,2960.0,2.827]
[1769149617548,0.14585509,2961.5,2960.0,2.827]
[1769149617844,0.35304338,2961.4,2960.0,2.827]
[1769149618042,0.14585509,2961.5,2960.0,2.827]
[1769149618238,0.35304315,2961.4,2960.0,2.827]
[1769149618435,0.14585509,2961.5,2960.0,2.827]
[1769149618634,0.35300733,2961.4,2960.0,2.827]
[1769149618847,0.14585509,2961.5,2960.0,2.827]
[1769149619046,0.35300726,2961.4,2960.0,2.827]
[1769149619350,0.14585509,2961.5,2960.0,2.827]
[1769149619645,0.35297981,2961.4,2960.0,2.827]
[1769149619845,0.14585509,2961.5,2960.0,2.827]
[1769149620045,0.14585509,2961.3,2959.7,0.00337955]